fUSD/lending_fUSD_20250511
["ID","MTS","AMOUNT","RATE_DAILY","PERIOD"]
[360673312,1746922252013,-400.0,0.00019743,2]
[360673313,1746922252023,-450.32765963,0.00019743,2]
[360673314,1746922252033,-400.0,0.00019743,2]
[360673315,1746922252043,-534.66010619,0.00019743,2]
[360673316,1746922252053,-610.92,0.00019743,2]
[360673317,1746922252063,-400.0,0.00019743,2]
[360673318,1746922252072,-260.25,0.00019743,2]
[360673319,1746922252082,-2975.71,0.00019743,2]
[360673320,1746922252093,-400.0,0.00019743,2]
[360673321,1746922252102,-259.82874725,0.00019743,2]
[360673322,1746922252111,-657.91,0.00019743,2]
[360673323,1746922252121,-400.0,0.00019743,2]
[360673324,1746922252130,-400.0,0.00019743,2]
[360673325,1746922252140,-400.0,0.00019743,2]
[360673326,1746922252322,-400.0,0.00019743,2]
[360673327,1746922252332,-166.53748789,0.00019743,2]
[360673328,1746922252343,-400.0,0.00019743,2]
[360673329,1746922252352,-531.9,0.00019743,2]
[360673330,1746922252361,-400.0,0.00019743,2]
[360673331,1746922252371,-400.0,0.00019743,2]
[360673332,1746922252380,-3132.65,0.00019743,2]
[360673333,1746922252391,-400.0,0.00019743,2]
[360673334,1746922252403,-400.0,0.00019743,2]
[360673335,1746922252414,-400.0,0.00019743,2]
[360673336,1746922252423,-1696.63,0.00019743,2]
[360673337,1746922252432,-400.0,0.00019743,2]
[360673338,1746922252441,-400.0,0.00019743,2]
[360673339,1746922252451,-400.0,0.00019743,2]
[360673340,1746922252460,-400.0,0.00019743,2]
[360673341,1746922252469,-400.0,0.00019743,2]
[360673342,1746922252480,-400.0,0.00019743,2]
[360673343,1746922252489,-400.0,0.00019743,2]
[360673344,1746922252498,-400.0,0.00019743,2]
[360673345,1746922252508,-400.0,0.00019743,2]
[360673346,1746922252518,-500.0,0.00019743,2]
[360673347,1746922252527,-400.0,0.00019743,2]
[360673348,1746922252536,-795.5,0.00019743,2]
[360673349,1746922252545,-400.0,0.00019743,2]
[360673350,1746922252556,-400.0,0.00019743,2]
[360673351,1746922252565,-400.0,0.00019743,2]
[360673352,1746922252574,-470.43,0.00019743,2]
[360673353,1746922252584,-1342.02,0.00019743,2]
[360673354,1746922252595,-400.0,0.00019743,2]
[360673355,1746922252605,-400.0,0.00019743,2]
[360673356,1746922252616,-402.12,0.00019743,2]
[360673357,1746922252626,-400.0,0.00019743,2]
[360673358,1746922252637,-400.0,0.00019743,2]
[360673359,1746922252646,-400.0,0.00019743,2]
[360673360,1746922252656,-400.0,0.00019743,2]
[360673361,1746922252666,-400.0,0.00019743,2]
[360673362,1746922252675,-358.6460921,0.00019743,2]
[360673363,1746922252685,-400.0,0.00019743,2]
[360673364,1746922252694,-400.0,0.00019743,2]
[360673365,1746922252704,-400.0,0.00019743,2]
[360673366,1746922252714,-400.0,0.00019743,2]
[360673367,1746922252724,-400.0,0.00019743,2]
[360673368,1746922252733,-441.48,0.00019743,2]
[360673369,1746922252743,-400.0,0.00019743,2]
[360673370,1746922252752,-400.0,0.00019743,2]
[360673371,1746922252762,-400.0,0.00019743,2]
[360673372,1746922252771,-400.0,0.00019743,2]
[360673373,1746922252781,-400.0,0.00019743,2]
[360673374,1746922252790,-600.9,0.00019743,2]
[360673375,1746922252799,-400.0,0.00019743,2]
[360673376,1746922252809,-400.0,0.00019743,2]
[360673377,1746922252819,-400.0,0.00019743,2]
[360673378,1746922252828,-400.0,0.00019743,2]
[360673379,1746922252839,-400.0,0.00019743,2]
[360673380,1746922252849,-400.0,0.00019743,2]
[360673381,1746922252858,-400.0,0.00019743,2]
[360673382,1746922252867,-544.12,0.00019743,2]
[360673383,1746922252876,-400.0,0.00019743,2]
[360673384,1746922252885,-265.36691347,0.00019743,2]
[360673385,1746922252894,-400.0,0.00019743,2]
[360673386,1746922252904,-500.0,0.00019743,2]
[360673387,1746922252913,-400.0,0.00019743,2]
[360673388,1746922252923,-400.0,0.00019743,2]
[360673389,1746922252932,-400.0,0.00019743,2]
[360673390,1746922252942,-400.0,0.00019743,2]
[360673391,1746922252952,-400.0,0.00019743,2]
[360673392,1746922252962,-2265.29,0.00019743,2]
[360673393,1746922252971,-400.0,0.00019743,2]
[360673394,1746922252982,-400.0,0.00019743,2]
[360673395,1746922252991,-518.2,0.00019743,2]
[360673396,1746922253000,-400.0,0.00019743,2]
[360673397,1746922253009,-400.0,0.00019743,2]
[360673398,1746922253019,-400.0,0.00019743,2]
[360673399,1746922253028,-400.0,0.00019743,2]
[360673400,1746922253037,-400.0,0.00019743,2]
[360673401,1746922253047,-400.0,0.00019743,2]
[360673402,1746922253056,-769.19,0.00019743,2]
[360673403,1746922253065,-400.0,0.00019743,2]
[360673404,1746922253075,-400.0,0.00019743,2]
[360673405,1746922253084,-400.0,0.00019743,2]
[360673406,1746922253097,-400.0,0.00019743,2]
[360673407,1746922253107,-400.0,0.00019744,2]
[360673408,1746922253117,-400.0,0.00019744,2]
[360673409,1746922253126,-400.0,0.00019744,2]
[360673410,1746922253136,-400.0,0.00019744,2]
[360673411,1746922253146,-400.0,0.00019744,2]
[360673412,1746922253155,-400.0,0.00019744,2]
[360673413,1746922253164,-576.35,0.00019744,2]
[360673414,1746922253174,-400.0,0.00019744,2]
[360673415,1746922253183,-400.0,0.00019744,2]
[360673416,1746922253193,-400.0,0.00019744,2]
[360673417,1746922253202,-549.19,0.00019744,2]
[360673418,1746922253212,-400.0,0.00019744,2]
[360673419,1746922253222,-400.0,0.00019744,2]
[360673420,1746922253231,-400.0,0.00019744,2]
[360673421,1746922253241,-400.0,0.00019744,2]
[360673422,1746922253251,-400.0,0.00019744,2]
[360673423,1746922253260,-400.0,0.00019744,2]
[360673424,1746922253270,-400.0,0.00019744,2]
[360673425,1746922253279,-400.0,0.00019744,2]
[360673426,1746922253288,-400.0,0.00019744,2]
[360673427,1746922253298,-400.0,0.00019744,2]
[360673428,1746922253307,-400.0,0.00019744,2]
[360673429,1746922253317,-400.0,0.00019744,2]
[360673430,1746922253331,-400.0,0.00019744,2]
[360673431,1746922253344,-476.46914607,0.00019744,2]
[360673432,1746922253354,-400.0,0.00019744,2]
[360673433,1746922253363,-400.0,0.00019744,2]
[360673434,1746922253374,-590.88,0.00019744,2]
[360673435,1746922253384,-300.0,0.00019744,2]
[360673436,1746922253393,-400.0,0.00019744,2]
[360673437,1746922253403,-400.0,0.00019744,2]
[360673438,1746922253414,-400.0,0.00019744,2]
[360673439,1746922253424,-400.0,0.00019744,2]
[360673440,1746922253433,-400.0,0.00019744,2]
[360673441,1746922253442,-400.0,0.00019744,2]
[360673442,1746922253452,-400.0,0.00019744,2]
[360673443,1746922253462,-503.34,0.00019744,2]
[360673444,1746922253472,-400.0,0.00019744,2]
[360673445,1746922253481,-400.0,0.00019744,2]
[360673446,1746922253490,-400.0,0.00019744,2]
[360673447,1746922253500,-400.0,0.00019744,2]
[360673448,1746922253509,-400.0,0.00019744,2]
[360673449,1746922253518,-400.0,0.00019744,2]
[360673450,1746922253528,-400.0,0.00019744,2]
[360673451,1746922253537,-400.0,0.00019744,2]
[360673452,1746922253547,-400.0,0.00019744,2]
[360673453,1746922253557,-400.0,0.00019744,2]
[360673454,1746922253566,-400.0,0.00019744,2]
[360673455,1746922253575,-400.0,0.00019744,2]
[360673456,1746922253584,-400.0,0.00019744,2]
[360673457,1746922253598,-400.0,0.00019744,2]
[360673458,1746922253607,-400.0,0.00019744,2]
[360673459,1746922253616,-400.0,0.00019744,2]
[360673460,1746922253626,-540.7,0.00019744,2]
[360673461,1746922253635,-400.0,0.00019744,2]
[360673462,1746922253644,-400.0,0.00019744,2]
[360673463,1746922253654,-400.0,0.00019744,2]
[360673464,1746922253663,-400.0,0.00019744,2]
[360673465,1746922253673,-400.0,0.00019744,2]
[360673466,1746922253682,-400.0,0.00019744,2]
[360673467,1746922253691,-400.0,0.00019744,2]
[360673468,1746922253700,-400.0,0.00019744,2]
[360673469,1746922253716,-400.0,0.00019744,2]
[360673470,1746922253732,-400.0,0.00019744,2]
[360673471,1746922253746,-511.72,0.00019744,2]
[360673472,1746922253759,-468.61,0.00019744,2]
[360673473,1746922253775,-491.04,0.00019744,2]
[360673474,1746922253788,-891.09,0.00019744,2]
[360673475,1746922253802,-400.0,0.00019744,2]
[360673476,1746922253816,-400.0,0.00019744,2]
[360673477,1746922253829,-400.0,0.00019744,2]
[360673478,1746922253842,-400.0,0.00019744,2]
[360673479,1746922253855,-400.0,0.00019744,2]
[360673480,1746922253869,-400.0,0.00019744,2]
[360673481,1746922253882,-400.0,0.00019744,2]
[360673482,1746922253896,-400.0,0.00019744,2]
[360673483,1746922253909,-400.0,0.00019744,2]
[360673484,1746922253923,-400.0,0.00019744,2]
[360673485,1746922253937,-400.0,0.00019744,2]
[360673486,1746922253950,-400.0,0.00019744,2]
[360673487,1746922253964,-702.22,0.00019744,2]
[360673488,1746922253978,-400.0,0.00019744,2]
[360673489,1746922253992,-400.0,0.00019744,2]
[360673490,1746922254006,-836.26,0.00019744,2]
[360673491,1746922254020,-638.44,0.00019744,2]
[360673492,1746922254033,-400.0,0.00019744,2]
[360673493,1746922254046,-400.0,0.00019744,2]
[360673494,1746922254058,-614.22,0.00019744,2]
[360673495,1746922254070,-400.0,0.00019744,2]
[360673496,1746922254087,-400.0,0.00019744,2]
[360673497,1746922254099,-506.95,0.00019744,2]
[360673498,1746922254109,-400.0,0.00019744,2]
[360673499,1746922254121,-724.13,0.00019744,2]
[360673500,1746922254136,-400.0,0.00019744,2]
[360673501,1746922254149,-400.0,0.00019744,2]
[360673502,1746922254160,-423.04,0.00019744,2]
[360673503,1746922254171,-400.0,0.00019744,2]
[360673504,1746922254184,-680.11,0.00019744,2]
[360673505,1746922254196,-400.0,0.00019744,2]
[360673506,1746922254208,-400.0,0.00019744,2]
[360673507,1746922254220,-400.0,0.00019744,2]
[360673508,1746922254232,-400.0,0.00019744,2]
[360673509,1746922254244,-400.0,0.00019744,2]
[360673510,1746922254255,-400.0,0.00019744,2]
[360673511,1746922254268,-400.0,0.00019744,2]
[360673512,1746922254279,-400.0,0.00019744,2]
[360673513,1746922254292,-158.98189596,0.00019744,2]
[360673514,1746922254305,-202.30486572,0.00019745,2]
[360673515,1746922254317,-150.0,0.0001975,2]
[360673516,1746922254331,-300.0,0.00019755,2]
[360673517,1746922254346,-250.0,0.00019768,2]
[360673518,1746922254359,-200.0,0.00019768,2]
[360673519,1746922254371,-200.0,0.00019769,2]
[360673520,1746922254396,-200.0,0.0001977,2]
[360673521,1746922254409,-500.0,0.00019773,2]
[360673522,1746922254421,-500.0,0.00019773,2]
[360673523,1746922254433,-500.0,0.00019773,2]
[360673524,1746922254445,-288.17669469,0.00019773,2]
[360673525,1746922254457,-500.0,0.00019773,2]
[360673526,1746922254470,-354.52000605,0.00019773,2]
[360673527,1746922254482,-500.0,0.00019773,2]
[360673528,1746922254495,-150.0,0.00019776,2]
[360673529,1746922254508,-2984.98727235,0.00019778,2]
[360673530,1746922254520,-150.0,0.00019778,2]
[360673531,1746922254533,-504.371528,0.00019784,2]
[360673532,1746922254547,-1000.0,0.00019795,2]
[360673533,1746922254560,-202.30486572,0.00019796,2]
[360673534,1746922254572,-603.0,0.000198,7]
[360673535,1746922254584,-4346.93976817,0.000198,2]
[360673536,1746922254599,-256.58138415,0.00019812,2]
[360673537,1746922254613,-150.0,0.00019813,2]
[360673538,1746922254625,-150.0,0.00019815,2]
[360673539,1746922254638,-150.0,0.00019817,2]
[360673540,1746922254651,-2984.98727235,0.00019818,2]
[360673541,1746922254663,-150.0,0.0001982,2]
[360673542,1746922254676,-504.37152798,0.00019829,2]
[360673543,1746922254691,-250.0,0.00019842,2]
[360673544,1746922254703,-202.30486572,0.00019848,2]
[360673545,1746922254716,-400.0,0.00019858,2]
[360673546,1746922254727,-400.0,0.00019858,2]
[360673547,1746922254740,-400.0,0.00019858,2]
[360673548,1746922254752,-400.0,0.00019858,2]
[360673549,1746922254764,-400.0,0.00019858,2]
[360673550,1746922254776,-400.0,0.00019858,2]
[360673551,1746922254788,-400.0,0.00019858,2]
[360673552,1746922254800,-2984.98727235,0.00019859,2]
[360673553,1746922254812,-300.0,0.00019862,2]
[360673554,1746922254825,-401.93674692,0.00019864,2]
[360673555,1746922254836,-321.58230473,0.00019864,2]
[360673556,1746922254850,-400.0,0.00019864,2]
[360673557,1746922254862,-503.03949981,0.00019864,2]
[360673558,1746922254874,-502.38839478,0.00019864,2]
[360673559,1746922254886,-12500.0,0.00019865,2]
[360673560,1746922254898,-1000.0,0.0001987,2]
[360673561,1746922254911,-1000.0,0.0001987,2]
[360673562,1746922254922,-891.10037912,0.0001987,2]
[360673563,1746922254935,-150.0,0.00019871,2]
[360673564,1746922254946,-1410.46915885,0.00019871,2]
[360673565,1746922254958,-311.98518919,0.00019874,2]
[360673566,1746922254970,-504.37152798,0.00019874,2]
[360673567,1746922254982,-250.0,0.00019876,2]
[360673568,1746922254994,-311.98518916,0.00019878,2]
[360673569,1746922255006,-311.98518916,0.00019883,2]
[360673570,1746922255018,-188.245,0.00019884,2]
[360673571,1746922255031,-1165.504,0.00019884,2]
[360673572,1746922255042,-255.35,0.00019885,2]
[360673573,1746922255055,-400.0,0.00019885,2]
[360673574,1746922255067,-400.0,0.00019885,2]
[360673575,1746922255079,-400.0,0.00019885,2]
[360673576,1746922255093,-400.0,0.00019885,2]
[360673577,1746922255105,-400.0,0.00019885,2]
[360673578,1746922255117,-400.0,0.00019885,2]
[360673579,1746922255129,-400.0,0.00019885,2]
[360673580,1746922255141,-657.91,0.00019885,2]
[360673581,1746922255153,-400.0,0.00019885,2]
[360673582,1746922255165,-400.0,0.00019885,2]
[360673583,1746922255176,-400.0,0.00019885,2]
[360673584,1746922255188,-400.0,0.00019885,2]
[360673585,1746922255200,-400.0,0.00019885,2]
[360673586,1746922255212,-535.07,0.00019885,2]
[360673587,1746922255223,-400.0,0.00019885,2]
[360673588,1746922255235,-400.0,0.00019885,2]
[360673589,1746922255248,-400.0,0.00019885,2]
[360673590,1746922255259,-600.9,0.00019885,2]
[360673591,1746922255271,-400.0,0.00019885,2]
[360673592,1746922255284,-400.0,0.00019885,2]
[360673593,1746922255297,-518.2,0.00019885,2]
[360673594,1746922255310,-400.0,0.00019885,2]
[360673595,1746922255322,-769.19,0.00019885,2]
[360673596,1746922255337,-400.0,0.00019886,2]
[360673597,1746922255350,-400.0,0.00019886,2]
[360673598,1746922255363,-400.0,0.00019886,2]
[360673599,1746922255376,-506.82019348,0.00019886,2]
[360673600,1746922255387,-400.0,0.00019886,2]
[360673601,1746922255397,-400.0,0.00019886,2]
[360673602,1746922255410,-400.0,0.00019886,2]
[360673603,1746922255419,-400.0,0.00019886,2]
[360673604,1746922255433,-400.0,0.00019886,2]
[360673605,1746922255444,-400.0,0.00019886,2]
[360673606,1746922255454,-400.0,0.00019886,2]
[360673607,1746922255464,-511.72,0.00019886,2]
[360673608,1746922255473,-468.61,0.00019886,2]
[360673609,1746922255483,-491.04,0.00019886,2]
[360673610,1746922255767,-891.09,0.00019886,2]
[360673611,1746922255781,-400.0,0.00019886,2]
[360673612,1746922255791,-400.0,0.00019886,2]
[360673613,1746922255801,-400.0,0.00019886,2]
[360673614,1746922255810,-400.0,0.00019886,2]
[360673615,1746922255820,-400.0,0.00019886,2]
[360673616,1746922255829,-400.0,0.00019886,2]
[360673617,1746922255841,-400.0,0.00019886,2]
[360673618,1746922255851,-400.0,0.00019886,2]
[360673619,1746922255861,-400.0,0.00019886,2]
[360673620,1746922255870,-400.0,0.00019886,2]
[360673621,1746922255881,-400.0,0.00019886,2]
[360673622,1746922255890,-702.22,0.00019886,2]
[360673623,1746922255900,-400.0,0.00019886,2]
[360673624,1746922255909,-400.0,0.00019886,2]
[360673625,1746922255918,-836.26,0.00019886,2]
[360673626,1746922255927,-638.44,0.00019886,2]
[360673627,1746922255937,-400.0,0.00019886,2]
[360673628,1746922255946,-400.0,0.00019886,2]
[360673629,1746922255956,-614.22,0.00019886,2]
[360673630,1746922255967,-400.0,0.00019886,2]
[360673631,1746922255977,-400.0,0.00019886,2]
[360673632,1746922255987,-506.95,0.00019886,2]
[360673633,1746922255997,-400.0,0.00019886,2]
[360673634,1746922256007,-724.13,0.00019886,2]
[360673635,1746922256016,-400.0,0.00019886,2]
[360673636,1746922256026,-400.0,0.00019886,2]
[360673637,1746922256036,-423.04,0.00019886,2]
[360673638,1746922256046,-400.0,0.00019886,2]
[360673639,1746922256055,-680.11,0.00019886,2]
[360673640,1746922256065,-400.0,0.00019886,2]
[360673641,1746922256075,-400.0,0.00019886,2]
[360673642,1746922256085,-400.0,0.00019886,2]
[360673643,1746922256098,-400.0,0.00019886,2]
[360673644,1746922256108,-400.0,0.00019886,2]
[360673645,1746922256118,-400.0,0.00019886,2]
[360673646,1746922256127,-400.0,0.00019886,2]
[360673647,1746922256136,-400.0,0.00019886,2]
[360673648,1746922256146,-450.28,0.00019886,2]
[360673649,1746922256155,-400.0,0.00019886,2]
[360673650,1746922256165,-400.0,0.00019886,2]
[360673651,1746922256175,-942.26,0.00019886,2]
[360673652,1746922256185,-613.12,0.00019886,2]
[360673653,1746922256194,-400.0,0.00019886,2]
[360673654,1746922256204,-400.0,0.00019886,2]
[360673655,1746922256214,-400.0,0.00019886,2]
[360673656,1746922256223,-400.0,0.00019886,2]
[360673657,1746922256233,-400.0,0.00019886,2]
[360673658,1746922256243,-400.0,0.00019886,2]
[360673659,1746922256253,-400.0,0.00019886,2]
[360673660,1746922256263,-400.0,0.00019886,2]
[360673661,1746922256273,-400.0,0.00019886,2]
[360673662,1746922256283,-400.0,0.00019886,2]
[360673663,1746922256293,-861.14,0.00019886,2]
[360673664,1746922256302,-400.0,0.00019886,2]
[360673665,1746922256311,-400.0,0.00019886,2]
[360673666,1746922256321,-400.0,0.00019886,2]
[360673667,1746922256334,-175.2,0.00019886,2]
[360673668,1746922256346,-400.0,0.00019886,2]
[360673669,1746922256356,-400.0,0.00019886,2]
[360673670,1746922256366,-1549.33,0.00019886,2]
[360673671,1746922256376,-400.0,0.00019886,2]
[360673672,1746922256385,-155.9891776,0.00019886,2]
[360673673,1746922256395,-400.0,0.00019886,2]
[360673674,1746922256406,-400.0,0.00019886,2]
[360673675,1746922256415,-851.88,0.00019886,2]
[360673676,1746922256425,-400.0,0.00019886,2]
[360673677,1746922256435,-400.0,0.00019886,2]
[360673678,1746922256444,-908.5,0.00019886,2]
[360673679,1746922256454,-400.0,0.00019887,2]
[360673680,1746922256464,-400.0,0.00019887,2]
[360673681,1746922256473,-400.0,0.00019887,2]
[360673682,1746922256483,-400.0,0.00019887,2]
[360673683,1746922256493,-576.35,0.00019887,2]
[360673684,1746922256503,-400.0,0.00019887,2]
[360673685,1746922256512,-400.0,0.00019887,2]
[360673686,1746922256522,-400.0,0.00019887,2]
[360673687,1746922256532,-549.19,0.00019887,2]
[360673688,1746922256542,-400.0,0.00019887,2]
[360673689,1746922256552,-400.0,0.00019887,2]
[360673690,1746922256561,-400.0,0.00019887,2]
[360673691,1746922256571,-400.0,0.00019887,2]
[360673692,1746922256580,-400.0,0.00019887,2]
[360673693,1746922256592,-400.0,0.00019887,2]
[360673694,1746922256601,-400.0,0.00019887,2]
[360673695,1746922256611,-400.0,0.00019887,2]
[360673696,1746922256620,-400.0,0.00019887,2]
[360673697,1746922256630,-400.0,0.00019887,2]
[360673698,1746922256639,-400.0,0.00019887,2]
[360673699,1746922256649,-590.88,0.00019887,2]
[360673700,1746922256658,-300.0,0.00019887,2]
[360673701,1746922256667,-400.0,0.00019887,2]
[360673702,1746922256677,-400.0,0.00019887,2]
[360673703,1746922256686,-400.0,0.00019887,2]
[360673704,1746922256695,-400.0,0.00019887,2]
[360673705,1746922256705,-400.0,0.00019887,2]
[360673706,1746922256714,-400.0,0.00019887,2]
[360673707,1746922256724,-400.0,0.00019887,2]
[360673708,1746922256733,-400.0,0.00019887,2]
[360673709,1746922256742,-449.11402877,0.00019887,2]
[360673710,1746922256752,-400.0,0.00019887,2]
[360673711,1746922256761,-400.0,0.00019887,2]
[360673712,1746922256771,-311.98518916,0.00019887,2]
[360673713,1746922256781,-500.0,0.0001989,2]
[360673714,1746922256791,-228.50585417,0.0001989,2]
[360673715,1746922256800,-152.66233463,0.0001989,2]
[360673716,1746922256809,-311.98518916,0.00019891,2]
[360673717,1746922256818,-311.98518916,0.00019896,2]
[360673718,1746922256828,-400.0,0.00019896,2]
[360673719,1746922256837,-400.0,0.00019896,2]
[360673720,1746922256850,-400.0,0.00019898,2]
[360673721,1746922256859,-501.66,0.00019898,2]
[360673722,1746922256868,-400.0,0.00019898,2]
[360673723,1746922256878,-400.0,0.00019898,2]
[360673724,1746922256887,-400.0,0.00019898,2]
[360673725,1746922256897,-400.0,0.00019898,2]
[360673726,1746922256907,-1033.72955231,0.00019898,2]
[360673727,1746922256918,-203.21344205,0.00019898,3]
[360673728,1746922256928,-5789.3211279,0.00019898,2]
[360673729,1746922256937,-400.0,0.00019899,2]
[360673730,1746922256948,-400.0,0.00019899,2]
[360673731,1746922256957,-400.0,0.00019899,2]
[360673732,1746922256967,-296.16856688,0.00019899,2]
[360673733,1746922256976,-400.0,0.00019899,2]
[360673734,1746922256985,-400.0,0.00019899,2]
[360673735,1746922256995,-400.0,0.00019899,2]
[360673736,1746922257004,-416.54,0.00019899,2]
[360673737,1746922257013,-400.0,0.00019899,2]
[360673738,1746922257023,-400.0,0.00019899,2]
[360673739,1746922257033,-400.0,0.00019899,2]
[360673740,1746922257044,-511.72,0.00019899,2]
[360673741,1746922257053,-400.0,0.00019899,2]
[360673742,1746922257063,-468.61,0.00019899,2]
[360673743,1746922257072,-1034.88,0.00019899,2]
[360673744,1746922257081,-400.0,0.00019899,2]
[360673745,1746922257093,-491.04,0.00019899,2]
[360673746,1746922257102,-400.0,0.00019899,2]
[360673747,1746922257111,-891.09,0.00019899,2]
[360673748,1746922257121,-400.0,0.00019899,2]
[360673749,1746922257130,-400.0,0.00019899,2]
[360673750,1746922257140,-400.0,0.00019899,2]
[360673751,1746922257150,-400.0,0.00019899,2]
[360673752,1746922257159,-400.0,0.00019899,2]
[360673753,1746922257169,-400.0,0.00019899,2]
[360673754,1746922257178,-400.0,0.00019899,2]
[360673755,1746922257187,-400.0,0.00019899,2]
[360673756,1746922257197,-400.0,0.00019899,2]
[360673757,1746922257206,-400.0,0.00019899,2]
[360673758,1746922257215,-511.99,0.00019899,2]
[360673759,1746922257224,-201.30687162,0.00019899,2]
[360673760,1746922257233,-400.0,0.00019899,2]
[360673761,1746922257243,-400.0,0.00019899,2]
[360673762,1746922257253,-400.0,0.00019899,2]
[360673763,1746922257263,-400.0,0.00019899,2]
[360673764,1746922257273,-400.0,0.00019899,2]
[360673765,1746922257283,-400.0,0.00019899,2]
[360673766,1746922257292,-400.0,0.00019899,2]
[360673767,1746922257301,-400.0,0.00019899,2]
[360673768,1746922257310,-400.0,0.00019899,2]
[360673769,1746922257320,-400.0,0.00019899,2]
[360673770,1746922257337,-400.0,0.00019899,2]
[360673771,1746922257349,-400.0,0.00019899,2]
[360673772,1746922257358,-702.22,0.00019899,2]
[360673773,1746922257368,-400.0,0.00019899,2]
[360673774,1746922257378,-492.71046995,0.00019899,2]
[360673775,1746922257387,-269.48,0.00019899,2]
[360673776,1746922257398,-400.0,0.00019899,2]
[360673777,1746922257407,-400.0,0.00019899,2]
[360673778,1746922257416,-400.0,0.00019899,2]
[360673779,1746922257426,-400.0,0.00019899,2]
[360673780,1746922257435,-520.16,0.00019899,2]
[360673781,1746922257444,-836.26,0.00019899,2]
[360673782,1746922257454,-400.0,0.00019899,2]
[360673783,1746922257463,-400.0,0.00019899,2]
[360673784,1746922257472,-638.44,0.00019899,2]
[360673785,1746922257482,-400.0,0.00019899,2]
[360673786,1746922257492,-400.0,0.00019899,2]
[360673787,1746922257502,-400.0,0.00019899,2]
[360673788,1746922257511,-400.0,0.00019899,2]
[360673789,1746922257521,-420.42,0.00019899,2]
[360673790,1746922257531,-400.0,0.00019899,2]
[360673791,1746922257540,-518.45,0.00019899,2]
[360673792,1746922257550,-614.22,0.00019899,2]
[360673793,1746922257559,-400.0,0.00019899,2]
[360673794,1746922257569,-400.0,0.00019899,2]
[360673795,1746922257579,-400.0,0.00019899,2]
[360673796,1746922257588,-400.0,0.00019899,2]
[360673797,1746922257599,-400.0,0.00019899,2]
[360673798,1746922257608,-400.0,0.00019899,2]
[360673799,1746922257617,-400.0,0.00019899,2]
[360673800,1746922257627,-506.95,0.00019899,2]
[360673801,1746922257637,-400.0,0.00019899,2]
[360673802,1746922257647,-400.0,0.00019899,2]
[360673803,1746922257656,-431.85,0.00019899,2]
[360673804,1746922257665,-400.0,0.00019899,2]
[360673805,1746922257675,-531.58375294,0.00019899,2]
[360673806,1746922257685,-400.0,0.00019899,2]
[360673807,1746922257694,-400.0,0.00019899,2]
[360673808,1746922257705,-400.0,0.00019899,2]
[360673809,1746922257714,-400.0,0.00019899,2]
[360673810,1746922257724,-400.0,0.00019899,2]
[360673811,1746922257734,-724.13,0.00019899,2]